Cogmind - Beta 16 @@@ ROGUE MODE // 2025.11.30 @ 16:41:50 Player: AngelSpirit Result: Destroyed by MAIN.C with Omega Cannon Performance ------------- Evolutions (9) 4500 Regions Visited (25) 5000 Robots Destroyed (436) 2180 Value Destroyed (23815) 23815 Prototype IDs (77) 1540 Alien Tech Used (0) 0 Bonus (25825) 25825 TOTAL SCORE: 62860 Bonus ------- Triggered High Security 500 High Alert Combat Kills 5356 Follower Combat Kills 799 Entered Garrisons 600 Entered DSFs 500 Aligned with FarCom 300 Met Data Miner 300 Acquired ECA 300 Met Warlord at Base 500 MAIN.C Attacked Warlord 500 Met Warlord at Research 2000 Invited to Help at Command 2000 Destroyed MAIN.C Guards 500 Met MAIN.C 5000 Destroyed MAIN.C Shell 5000 Met Warlord at Command 2000 Friendly Fire -330 Cogmind --------- Core Integrity 0/1600 Matter 259/300 Energy 8/100 System Corruption 36% Temperature Cool (9) Movement Walking (100) Location -1/Command Parts ------- > --- POWER (3) -------- (None) > --- PROPULSION (5) --- Enhanced Biometal Leg > --- UTILITY (13) ----- Advanced Coolant Injector Improved Armor Integrity Analyzer Graphene Brace Improved Corruption Screen > --- WEAPON (4) ------- (None) > --- INVENTORY (5) ---- Centrium Leg Centrium Leg Advanced Heat Sink Advanced Coolant Injector Phase Gun Peak State ------------ > --- POWER ------------ Light Quantum Reactor Light Quantum Reactor Improved Quantum Reactor > --- PROPULSION ------- Centrium Leg Centrium Leg Centrium Leg Centrium Leg Centrium Leg > --- UTILITY ---------- Experimental Heat Sink Advanced Cooling System Advanced Cooling System Large Storage Unit Improved Armor Integrity Analyzer Advanced Weapon Cycler Advanced Phase Shifter Centrium Light Armor Plating Centrium Light Armor Plating Graphene Brace Improved Hacking Suite Advanced Hacking Suite Improved System Shield > --- WEAPON ----------- Enhanced Nova Cannon Enhanced Nova Cannon Enhanced Nova Cannon Enhanced Nova Cannon > --- INVENTORY -------- Light Antimatter Reactor Centrium Leg Centrium Leg Centrium Leg Heavy Shield Leg Advanced Heat Sink Advanced Coolant Injector Heavy Armor Plating Advanced Force Field Enhanced Nova Cannon Enhanced Nova Cannon Fusion Bomb Launcher Improved Plasma Cutter [Rating: 205] Favorites ----------- Power Light Antimatter Reactor Engine Improved Deuterium Engine Power Core Micro Fission Core Reactor Light Antimatter Reactor Propulsion Centrium Leg Treads Improved Heavy Treads Leg Centrium Leg Hover Unit Antigrav System Flight Unit Cooled Impulse Thruster Utility Large Storage Unit Device Advanced Heat Sink Storage Large Storage Unit Processor Armor Integrity Analyzer Hackware Hacking Suite Protection Improved Medium Armor Plating Weapon Enhanced Nova Cannon Energy Gun Gatling Laser Energy Cannon Enhanced Nova Cannon Ballistic Gun Gauss Rifle Ballistic Cannon Enhanced Hardcell Cannon Launcher Heavy Rocket Launcher Special Weapon Improved Plasma Cutter Slashing Weapon Power Sword Build | -11 -10 -10 -10 -9 -8 -7 -7 -7 -7 -7 -6 -6 -6 -5 -5 -5 -5 -4 -4 -4 -3 -3 -2 -1 -1 ------- Run | Yrd Mat Min Exi Min Mat Fac Gar Fac Low Dat Pro Fac Gar Fac Upp Upp War Pro Fac Gar Res DSF Res Acc Com Slots Evolved 18 | . . . . . 4 2 . . . . . 2 . 2 . . . . 2 . 2 . 2 2 . Power 2 | . . . . . . . . . . . . . . 1 . . . . . . . . . 1 . Propulsion 3 | . . . . . 2 . . . . . . 1 . . . . . . . . . . . . . Utility 11 | . . . . . 2 1 . . . . . 1 . 1 . . . . 1 . 2 . 2 1 . Weapon 2 | . . . . . . 1 . . . . . . . . . . . . 1 . . . . . . Parts Attached 413 | 6 8 11 . 5 42 20 16 9 . . 2 7 21 50 8 6 10 3 41 23 2 16 27 44 36 Power 55 | 1 . 1 . 1 5 3 2 1 . . . 1 2 5 . 1 . . 3 4 . 2 6 10 7 Engine 15 | 1 . 1 . . 5 3 1 1 . . . . 1 . . 1 . . . . . . . . 1 Core 12 | . . . . 1 . . 1 . . . . 1 . 4 . . . . 2 1 . 1 1 . . Reactor 28 | . . . . . . . . . . . . . 1 1 . . . . 1 3 . 1 5 10 6 Propulsion 107 | 2 3 4 . 2 10 5 6 5 . . 1 2 5 13 1 . 3 1 14 9 . 10 . 5 6 Treads 1 | . . . . . . . . . . . . . 1 . . . . . . . . . . . . Leg 58 | 2 3 4 . 2 9 5 6 . . . . . . . . . 1 . 1 5 . 10 . 5 5 Wheel . | . . . . . . . . . . . . . . . . . . . . . . . . . . Hover 38 | . . . . . 1 . . 5 . . 1 2 4 7 1 . . . 12 4 . . . . 1 Flight 10 | . . . . . . . . . . . . . . 6 . . 2 1 1 . . . . . . Utility 152 | 1 2 1 . 1 14 9 4 2 . . . 3 9 22 4 3 2 1 13 5 1 2 18 19 16 Device 76 | . . 1 . . 4 3 2 1 . . . 3 7 8 1 1 2 1 7 4 1 1 10 11 8 Storage 3 | 1 . . . . 1 . . . . . . . . . . . . . 1 . . . . . . Processor 20 | . . . . . . 2 . . . . . . . 5 2 1 . . 1 . . . 3 3 3 Hackware 19 | . . . . . 1 1 1 1 . . . . . 5 1 . . . 4 . . . 2 2 1 Protection 34 | . 2 . . 1 8 3 1 . . . . . 2 4 . 1 . . . 1 . 1 3 3 4 Artifact . | . . . . . . . . . . . . . . . . . . . . . . . . . . Weapon 99 | 2 3 5 . 1 13 3 4 1 . . 1 1 5 10 3 2 5 1 11 5 1 2 3 10 7 Energy Gun 42 | 1 2 3 . . 3 2 2 1 . . 1 1 3 4 1 1 4 . 6 . 1 1 . 1 4 Energy Cannon 17 | . . . . . 1 . . . . . . . 1 1 . . . . 1 2 . 1 3 7 . Ballistic Gun 16 | 1 . 1 . 1 8 . . . . . . . . . . . . 1 1 1 . . . . 2 Ballistic Cannon 8 | . . . . . . 1 . . . . . . . 2 . . . . 1 2 . . . 1 1 Launcher 10 | . 1 1 . . 1 . 1 . . . . . 1 1 . 1 1 . 1 . . . . 1 . Special Weapon 2 | . . . . . . . . . . . . . . 1 . . . . 1 . . . . . . Impact Weapon . | . . . . . . . . . . . . . . . . . . . . . . . . . . Slashing Weapon 4 | . . . . . . . 1 . . . . . . 1 2 . . . . . . . . . . Piercing Weapon . | . . . . . . . . . . . . . . . . . . . . . . . . . . Special Melee Weapon . | . . . . . . . . . . . . . . . . . . . . . . . . . . Unidentified Prototypes 44 | . . . . . 8 2 . . . . . 1 1 10 . . 5 . 4 . . . 4 2 7 Corrupted Parts 1 | . . . . . . . . . . . . . . 1 . . . . . . . . . . . System Corruption 5 | . . . . . . . . . . . . . . 5 . . . . . . . . . . . Parts Lost 139 | . 2 4 . . 2 3 3 2 . . 1 . 10 27 3 2 . 2 5 5 . 2 10 15 41 Power 23 | . . 1 . . 1 . . . . . . . 1 4 . 1 . . . . . 1 2 4 8 Propulsion 28 | . . . . . 1 2 . 1 . . 1 . 2 7 1 . . . 3 2 . . . . 8 Utility 53 | . . 1 . . . 1 2 1 . . . . 2 11 1 1 . 1 1 2 . . 7 7 15 Weapon 35 | . 2 2 . . . . 1 . . . . . 5 5 1 . . 1 1 1 . 1 1 4 10 Highest Loss Streak 25 | . 2 2 . . 2 1 1 1 . . 1 . 4 15 2 2 . 1 2 1 . 1 10 3 25 To Critical Strikes . | . . . . . . . . . . . . . . . . . . . . . . . . . . Average Backups 10 | . 3 5 5 6 7 14 14 14 13 15 14 14 13 12 3 3 4 3 6 13 12 14 12 11 11 Power . | . . . 1 1 . . 1 1 1 1 1 1 1 1 . . . . . . 2 2 1 . . Propulsion 2 | . . 2 1 1 1 4 4 2 1 1 . . . 3 . . . . 1 3 1 3 4 2 3 Utility 4 | . 1 2 2 3 3 7 7 6 6 6 6 5 6 4 1 1 1 2 3 5 5 5 4 4 4 Weapon 2 | . . . 1 1 2 2 1 3 5 6 6 6 4 2 2 2 2 1 1 2 3 2 1 2 2 Tool/Special . | . . . . . . . . . . . . . . . . . . . . . . . . . . Unused Backups 41 | . . . 1 2 4 4 2 1 . . 2 2 2 7 1 . 1 . 1 1 . 1 5 1 3 Power 5 | . . . . . 3 . . . . . 1 . . . . . . . . . . . . 1 . Propulsion 17 | . . . 1 1 . 4 . . . . . . . 5 . . . . . 1 . 1 3 . 1 Utility 10 | . . . . 1 . . 2 1 . . . 1 1 1 . . . . . . . . 2 . 1 Weapon 9 | . . . . . 1 . . . . . 1 1 1 1 1 . 1 . 1 . . . . . 1 Tool/Special . | . . . . . . . . . . . . . . . . . . . . . . . . . . Average Slot Usage (%) 91 | . 94 96 100 99 95 90 98 97 92 77 92 86 82 79 79 80 91 83 87 89 99 99 98 97 88 Engine 4 | . 14 13 14 . 8 7 4 1 7 7 7 2 . 1 . 1 9 5 3 . . . . . . Core 1 | . . . . 13 . . 2 5 . . . 3 3 5 5 3 . . 2 1 4 5 1 . . Reactor 2 | . . . . . . . . . . . . . 1 2 . . . . 1 5 4 2 6 11 9 Leg 16 | . 28 28 28 28 35 27 30 22 . . . . . . . . . . . 7 23 22 21 19 15 Hover 6 | . . . . . . . . 7 30 30 29 22 16 14 8 11 5 . 20 17 . . . . . Flight 1 | . . . . . . . . . . . . . . 1 11 11 19 28 4 . . . . . . Device 13 | . . 10 14 13 9 5 6 11 15 15 15 13 14 18 9 11 11 13 8 14 23 23 27 24 24 Storage 6 | . 14 14 14 14 9 7 7 7 7 7 7 6 6 4 . . . . 2 5 4 4 4 4 3 Processor 3 | . . . . . . 5 . . . . . . . . 19 17 16 11 8 5 4 4 4 4 7 Hackware 9 | . . . . . 4 11 15 12 15 15 15 13 13 8 1 5 5 5 18 14 9 9 8 11 4 Protection 5 | . 13 3 . . 11 6 7 5 . . . 4 4 3 5 3 5 5 1 . 3 3 3 4 7 Energy Gun 7 | . 16 16 28 18 . 5 15 15 15 1 15 16 18 10 3 5 6 4 4 . 3 5 1 . 3 Energy Cannon 2 | . . . . . . . . . . . . . . 2 . . . . . 2 4 4 11 15 3 Ballistic Gun 2 | . 2 1 . 9 15 7 . . . . . . . . . . . . 2 6 . . . . 2 Ballistic Cannon 1 | . . . . . . 2 . . . . . . . . . . . . 1 5 9 5 3 . 4 Slashing Weapon 1 | . . . . . . . 1 5 . . . 1 . . 5 4 5 4 5 1 . . . . . Peak Build Rating 205 | 6 7 14 16 21 49 60 56 56 52 49 56 73 93 114 95 90 106 106 118 138 143 155 178 205 203 Average Rating 87 | 4 6 11 15 19 35 52 51 53 52 45 51 67 78 96 87 83 100 90 105 113 141 146 172 187 176 On Entrance 73 | . 6 6 14 16 21 39 47 55 52 52 49 51 73 90 78 86 90 94 92 108 138 142 155 178 189 Avg Prop Armor Cover (%) 5 | . . . . . 14 . . . . . . . 7 8 6 4 4 . . 9 . . . 3 . Naked Turns 3 | . . . . . . . . . . . . . . 3 . . . . . . . . . . . Heaviest Build 147 | 12 15 19 19 22 59 55 58 54 39 35 39 51 62 71 20 25 28 29 59 116 116 116 138 138 147 Greatest Support 152 | 20 20 20 20 20 60 73 64 64 42 42 42 57 62 78 25 25 28 32 61 121 121 150 150 150 152 Greatest Overweight (x) 10 | 1 . . . 1 10 1 . 2 . . . . 2 1 1 . 1 . 1 2 . . . 1 . Average Overweight (x) . | . . . . . . . . . . . . . . . . . . . . . . . . . . Largest Inventory Capacity 15 | 8 8 8 8 8 15 15 15 15 15 15 15 15 15 15 5 5 5 5 15 15 15 15 15 15 15 Average Capacity 12 | 7 8 8 8 8 9 15 15 15 15 15 15 15 15 13 5 5 5 5 9 15 15 15 15 15 14 Most Carried 15 | . 7 8 6 8 15 15 15 15 14 15 15 15 15 15 5 5 5 5 15 15 13 15 15 15 15 Average Carried 11 | . 4 5 5 7 9 14 14 14 13 15 14 14 14 13 4 4 4 3 6 13 12 14 14 13 12 Final Capacity 15 | 8 8 8 8 8 15 15 15 15 15 15 15 15 15 5 5 5 5 5 15 15 15 15 15 15 5 Final Carried 15 | . 6 6 6 8 15 15 14 13 14 15 15 15 15 5 5 5 5 2 15 14 12 15 13 12 5 Class Distribution -------------------- 17% | Scavenger-Mutant 14% | Hacker-Skirmisher 13% | Scavenger-Tank 13% | Mutant 10% | Hacker-Mutant 6% | Scavenger-Skirmisher 6% | Skirmisher 3% | Hacker-Tank 3% | Scientist-Skirmisher Dominant Class ---------------- Mutant | -10/Materials Scavenger-Mutant | -10/Mines Scavenger-Mutant | -10/Exiles Scavenger-Mutant | -9/Mines Mutant | -8/Materials Skirmisher | -7/Factory Scientist-Skirmisher | -7/Garrison Scavenger-Mutant | -7/Factory Hacker-Mutant | -7/Lower Caves Hacker-Mutant | -7/Data Miner Hacker-Mutant | -6/Proximity Caves Hacker-Skirmisher | -6/Factory Hacker-Skirmisher | -6/Garrison Hacker-Skirmisher | -5/Factory Scavenger-Mutant | -5/Upper Caves Scavenger-Mutant | -5/Upper Caves Commander-Sprinter | -5/Warlord Scavenger-Sprinter | -4/Proximity Caves Hacker-Mutant | -4/Factory Hacker-Mutant | -4/Garrison Scavenger-Tank | -3/Research Scavenger-Tank | -3/DSF Hacker-Tank | -2/Research Scavenger-Tank | -1/Access Scavenger-Tank | -1/Command Resources | -11 -10 -10 -10 -9 -8 -7 -7 -7 -7 -7 -6 -6 -6 -5 -5 -5 -5 -4 -4 -4 -3 -3 -2 -1 -1 ----------- Run | Yrd Mat Min Exi Min Mat Fac Gar Fac Low Dat Pro Fac Gar Fac Upp Upp War Pro Fac Gar Res DSF Res Acc Com Matter Collected 11270 | 189 412 292 . 85 1120 528 417 202 . . 184 140 505 851 352 330 110 110 864 1628 . 370 607 830 1144 Remotely . | . . . . . . . . . . . . . . . . . . . . . . . . . . Salvage Created 19598 | . 547 326 . 207 1732 1373 887 562 . . 215 217 2188 1800 59 243 . 183 1040 1540 . 538 977 3606 1358 Parts 893 | . 18 21 . 15 106 82 42 16 . . 14 14 70 57 . 8 . 13 70 56 . 35 28 204 24 Haulers Intercepted 10 | . 2 . . . 2 1 . . . . . . . 4 . . . . . . . . 1 . . Recyclers Shooed 9 | . . 1 . . 2 1 . 1 . . . . . 3 . . . . 1 . . . . . . Parts Field Recycled . | . . . . . . . . . . . . . . . . . . . . . . . . . . Retrieved Matter . | . . . . . . . . . . . . . . . . . . . . . . . . . . Parts Self-Destructed 39 | . . . . . . . . . . . 10 . . . 6 15 . 8 . . . . . . . Prevented 3 | . . . . . . . . . . . . . . . . 2 . 1 . . . . . . . Parts Restored 1 | . . . . . . 1 . . . . . . . . . . . . . . . . . . . Broken 1 | . . . . . . 1 . . . . . . . . . . . . . . . . . . . Kills | -11 -10 -10 -10 -9 -8 -7 -7 -7 -7 -7 -6 -6 -6 -5 -5 -5 -5 -4 -4 -4 -3 -3 -2 -1 -1 ------- Run | Yrd Mat Min Exi Min Mat Fac Gar Fac Low Dat Pro Fac Gar Fac Upp Upp War Pro Fac Gar Res DSF Res Acc Com Combat Hostiles Destroyed 356 | . 8 10 . 8 36 17 28 11 . . 8 3 37 38 . 8 . 14 19 22 . 11 12 54 12 Melee 4 | . . . . . . . . . . . . . . . . . . . 3 . . . 1 . . Guns 159 | . 2 4 . 8 36 16 15 8 . . 2 3 24 13 . 3 . 1 8 11 . 1 1 . 3 Cannons 84 | . . . . . . . . . . . . . . 3 . . . . 5 10 . 10 8 42 6 AOE 89 | . 6 5 . . . . 12 2 . . 6 . 8 20 . 5 . 13 3 . . . . 7 2 Classes Destroyed 24 | . 4 1 . . 6 5 . . . . . . 1 3 . . . . . . . . 3 . 1 Worker 15 | . . . . . . 10 . 2 . . . . . . . . . . . . . . . 3 . Builder 11 | . . . . . 2 1 . . . . . 1 . 2 . . . . . . . . 1 4 . Tunneler 2 | . . . . . 1 . . . . . . . . . . . . . . . . . . 1 . Hauler 10 | . 2 . . . 2 1 . . . . . . . 4 . . . . . . . . 1 . . Recycler 7 | . 2 1 . . 2 . . 2 . . . . . . . . . . . . . . . . . Mechanic 1 | . . . . . . . . . . . . . . 1 . . . . . . . . . . . Operator 8 | . . . . . . 2 . 1 . . . . . 2 . . . . 2 . . . . 1 . Watcher 25 | . 2 . . . 4 4 . 2 . . . 1 1 1 . . . . 2 . . . 1 7 . Swarmer 85 | . . 3 . 4 9 . 10 . . . 4 . 4 4 . 4 . 9 9 3 . 3 . 15 4 Cutter 7 | . . . . . 2 . . . . . . . . 1 . . . . . . . 4 . . . Saboteur 1 | . . . . . . . . . . . . . . . . . . . . . . . 1 . . Grunt 112 | . 8 7 . 4 15 4 9 8 . . . 1 20 11 . . . 4 . 8 . . 6 6 1 Brawler 9 | . . . . . . 2 1 . . . . . . 1 . 2 . . . 3 . . . . . Duelist 10 | . . . . . . 1 1 2 . . . . 1 1 . 1 . . . 2 . . . 1 . Protector 1 | . . . . . . . . . . . . . . 1 . . . . . . . . . . . Sentry 37 | . . . . . 8 6 4 . . . . 2 4 2 . . . 1 2 1 . . 3 3 1 Demolisher 1 | . . . . . . . . . . . . . . . . . . . . . . . 1 . . Specialist 6 | . . . . . . . . . . . . . . 3 . . . . . . . 1 . 2 . Hunter 31 | . . . . . 1 . 3 . . . 3 . 4 4 . 1 . . 2 2 . 2 . 8 1 Programmer 43 | . . . . . . 4 . 1 . . 1 . 1 10 . . . . 6 2 . . . 18 . Heavy 4 | . . . . . 1 . . . . . . . 1 . . . . . . . . 1 . 1 . Behemoth 3 | . . . . . . . . . . . . . 2 . . . . . . 1 . . . . . Combat Programmer 1 | . . . . . . . . . . . . . . . . . . . . . . . . . 1 Striker 2 | . . . . . . . . . . . . . . . . . . . . . . . 1 . 1 Executioner 2 | . . . . . . . . . . . . . . . . . . . . . . . . . 2 Butcher 1 | . . . . . . . . . . . . . . . . . . . . . . . . . 1 Best Kill Streak 18 | . 2 6 . 4 8 7 10 6 . . 4 2 8 18 . 4 . 5 5 3 . 7 5 7 4 Combat Bots Only 15 | . 2 5 . 4 6 3 10 4 . . 4 1 8 15 . 4 . 5 5 3 . 7 5 6 4 Max Kills in Single Turn 8 | . 1 2 . 1 2 6 3 4 . . 4 2 4 8 . 2 . 5 2 1 . 2 2 4 2 Gunslinging 1 | . . . . . . . 1 . . . . . . . . . . . . . . . . . . Exploded 6 | . 1 2 . . . . 3 2 . . 4 . 3 6 . 2 . 5 2 . . . . 3 2 Melee 1 | . . . . . . . . . . . . . . . . . . . 1 . . . 1 . . Uniques/NPCs Destroyed 1 | . . . . . . . . . . . . . . . . . . . . . . . . . 1 MAIN.C Shell (-1/Command) Combat | -11 -10 -10 -10 -9 -8 -7 -7 -7 -7 -7 -6 -6 -6 -5 -5 -5 -5 -4 -4 -4 -3 -3 -2 -1 -1 -------- Run | Yrd Mat Min Exi Min Mat Fac Gar Fac Low Dat Pro Fac Gar Fac Upp Upp War Pro Fac Gar Res DSF Res Acc Com Hostile Shots Fired 2166 | . 53 36 . 19 133 140 157 31 . . 30 22 178 301 34 12 3 12 112 104 . 67 129 300 293 Missed 775 | . 15 13 . 8 42 50 69 8 . . 8 12 74 121 12 3 3 5 38 45 . 30 40 106 73 Intercepted 11 | . . . . . . . . . . . . . . . . . . . . . . . . . 11 Deflected 1 | . . . . . . . . . . . . . . . . . . . . . . . . . 1 Hits 1391 | . 38 23 . 11 91 90 88 23 . . 22 10 104 180 22 9 . 7 74 59 . 37 89 194 220 Melee 35 | . . . . . 3 1 1 4 . . . . . 15 . . . . . . . 3 7 . 1 Projectile 1356 | . 38 23 . 11 88 89 87 19 . . 22 10 104 165 22 9 . 7 74 59 . 34 82 194 219 AOE 23 | . . . . . 2 . . . . . . . . 3 . . . . . . . 3 6 1 8 Critical Strikes 69 | . 1 . . . 5 2 . 1 . . 1 . . 14 . . . 1 2 1 . 3 8 13 17 Actively Blocked 43 | . . . . . . . . . . . . . . . . . . 1 . 1 . 3 8 13 17 Part Disruptions 12 | . . . . . . . . . . . . . . 2 1 . . . . . . . . 4 5 Actively Blocked 1 | . . . . . . . . . . . . . . . 1 . . . . . . . . . . Damage Taken 31314 | . 528 311 . 111 1527 1178 1174 450 . . 375 108 1893 3997 268 170 . 288 1186 964 . 1074 2592 4940 8180 Core 4099 | . 88 55 . 25 76 191 140 48 . . 56 21 221 827 74 33 . 19 131 74 . 78 232 477 1233 Absorbed by Shields 256 | . . . . . . . . . . . . . . . . . . . . 102 . 103 51 . . Reduced by Siege Mode 30 | . . . . . . . . . . . . . 30 . . . . . . . . . . . . Redirected to Shielding 267 | . 29 23 . . . . . . . . . . . 35 39 32 . . . . . . . 7 102 Ignored by Resistances 554 | . . . . . . . . . . . . . 33 206 190 . . . 125 . . . . . . Regen/Repaired (Parts) 799 | . 33 . . . . 72 . . . . . 75 . 197 . . . . 322 . . . 100 . . Core Remaining (%) 65 | 100 . . . 32 86 . . . . . 37 . 71 . . . . 4 . 82 . 94 84 . . Volleys Fired 1087 | . 64 34 . 11 78 68 72 43 . . 7 11 104 101 . 26 3 13 42 127 . 21 33 156 73 Largest 4 | . 2 2 . 2 2 3 3 3 . . 3 3 3 3 . 1 1 1 3 4 . 4 4 4 4 Hottest 480 | . 80 140 . 140 56 100 160 199 . . 199 240 240 250 . 50 75 45 199 336 . 358 418 480 363 Shots Fired 2418 | . 114 38 . 22 205 167 126 84 . . 19 24 230 173 2 27 3 13 74 227 . 61 118 478 213 Gun 1373 | . 99 32 . 22 205 133 112 81 . . 15 24 223 90 2 14 3 7 47 132 . 13 7 14 98 Cannon 948 | . . . . . . 34 . . . . . . . 68 . . . . 25 93 . 44 111 460 113 Launcher 97 | . 15 6 . . . . 14 3 . . 4 . 7 15 . 13 . 6 2 2 . 4 . 4 2 Special . | . . . . . . . . . . . . . . . . . . . . . . . . . . Kinetic 795 | . 10 18 . 5 205 129 . . . . . . . 4 . . . . 50 205 . 23 31 1 114 Thermal 1425 | . 5 14 . 17 . 38 112 81 . . 15 24 223 154 2 14 3 . 12 20 . 34 87 473 97 Explosive 83 | . 15 6 . . . . 14 3 . . 4 . 7 15 . 13 . . . . . . . 4 2 Electromagnetic 98 | . 84 . . . . . . . . . . . . . . . . . 8 2 . 4 . . . Entropic 17 | . . . . . . . . . . . . . . . . . . 13 4 . . . . . . Robot Hit Streak 23 | . 4 9 . 19 13 22 17 15 . . 14 12 23 21 . 10 2 3 5 16 . 8 5 8 17 Robot Miss Streak 9 | . 4 1 . 2 8 5 3 6 . . 4 3 3 7 . 2 1 2 6 5 . 3 5 9 5 Penetration Max 2 | . . . . . 1 . . . . . . . . . . . . 2 1 1 . . . . . Secondary Targets 21 | . . . . . 9 . 3 1 . . . . 3 4 . . . . . 1 . . . . . Max Gunslinging Chain 1 | . . . . . 1 . 1 1 . . . . 1 1 . . . . . 1 . . . . . Autonomous 137 | . . . . . 53 84 . . . . . . . . . . . . . . . . . . . Shots Hit Robots 1459 | . 48 29 . 17 141 108 95 72 . . 17 23 182 97 9 19 2 8 67 114 . 27 56 184 144 Core Hits 929 | . 26 19 . 14 92 56 72 57 . . 19 22 139 119 1 13 . 17 30 51 . 17 23 95 47 Critical Kills 39 | . . . . . 1 1 . . . . . . 1 1 . . . . 9 15 . . 2 7 2 Critical Parts Destroyed 40 | . . . . . 2 1 . . . . . . . 1 . . . 2 10 22 . . . . 2 Critical Strikes 102 | . . 3 . 1 3 5 3 . . . . . 4 2 3 1 . 2 20 38 . 1 2 7 7 Burn 11 | . . 3 . 1 . 1 3 . . . . . . . . 1 . . . . . 1 . . 1 Meltdown 13 | . . . . . . . . . . . . . . 1 . . . . . 1 . . 2 7 2 Destroy 65 | . . . . . 3 2 . . . . . . 1 1 . . . . 19 37 . . . . 2 Blast 4 | . . . . . . 2 . . . . . . . . . . . . . . . . . . 2 Corrupt 1 | . . . . . . . . . . . . . . . . . . . 1 . . . . . . Sever 6 | . . . . . . . . . . . . . 3 . 3 . . . . . . . . . . Detonate 2 | . . . . . . . . . . . . . . . . . . 2 . . . . . . . Melee Attacks 133 | . . . . . . . 15 . . . . 2 23 5 13 . . . 61 14 . . . . . Impact . | . . . . . . . . . . . . . . . . . . . . . . . . . . Slashing 133 | . . . . . . . 15 . . . . 2 23 5 13 . . . 61 14 . . . . . Piercing . | . . . . . . . . . . . . . . . . . . . . . . . . . . Sneak Attacks 2 | . . . . . . . . . . . . . . . . . . . 2 . . . . . . Combat Hostiles . | . . . . . . . . . . . . . . . . . . . . . . . . . . Follow-up Attacks . | . . . . . . . . . . . . . . . . . . . . . . . . . . Damage Inflicted 58640 | . 1157 813 . 373 3143 3416 3927 2160 . . 798 622 6691 7335 432 1037 71 2721 2237 1859 . 1494 3101 10138 5115 Guns 21555 | . 588 334 . 316 3055 2816 1860 1700 . . 313 622 4316 2030 . 223 71 308 434 495 . 110 159 153 1652 Cannons 18118 | . . . . . . 240 . . . . . . . 497 . . . . 272 1052 . 1299 2942 8794 3022 Explosions 14992 | . 569 479 . 57 88 358 1407 450 . . 485 . 1102 4784 . 814 . 2413 140 153 . 85 . 1167 441 Melee 3915 | . . . . . . . 660 . . . . . 1273 . 432 . . . 1391 159 . . . . . Ramming 60 | . . . . . . 2 . 10 . . . . . 24 . . . . . . . . . 24 . Kinetic 11256 | . 39 109 . 69 3055 2462 . . . . . . . . . . . . 398 1214 . 557 721 . 2632 Thermal 28001 | . 34 225 . 304 88 594 1860 1700 . . 313 622 4316 2696 . 223 71 237 164 333 . 852 2380 8947 2042 Explosive 11641 | . 569 479 . . . 112 1407 450 . . 485 . 1102 4615 . 814 . . . . . . . 1167 441 Electromagnetic 1215 | . 515 . . . . 246 . . . . . . . . . . . 24 192 153 . 85 . . . Impact . | . . . . . . . . . . . . . . . . . . . . . . . . . . Slashing 3915 | . . . . . . . 660 . . . . . 1273 . 432 . . . 1391 159 . . . . . Piercing . | . . . . . . . . . . . . . . . . . . . . . . . . . . Entropic 2552 | . . . . . . . . . . . . . . . . . . 2460 92 . . . . . . Highest Corruption 36 | . . . . . . 4 4 5 5 5 5 . 1 8 11 11 11 . 2 1 . 1 . 17 36 Average Corruption 6 | . . . . . . 2 3 4 5 5 5 . 1 3 10 11 11 . 1 1 . 1 . 10 26 Corruption Purged 9 | . . . . . . 4 . . . . . . . . . . . . 2 . . . . 3 . Corruption Blocked 6 | . . . . . . . . . . . . . . 2 . . . . . . . . . . 4 Effects 289 | . . . . . . 15 29 20 2 1 12 . 4 18 18 28 . . 3 12 . 2 . 63 62 Message Errors 70 | . . . . . . 6 8 7 1 . 3 . . 3 3 6 . . 1 2 . 1 . 17 12 Matter Fused 74 | . . . . . . 1 6 4 1 1 5 . . 5 4 9 . . 1 5 . . . 11 21 Heat Flow Errors 34 | . . . . . . 4 3 2 . . 2 . 1 5 4 1 . . . 1 . . . 8 3 Energy Discharges 29 | . . . . . . 2 5 2 . . . . 2 2 2 4 . . . 1 . . . 5 4 Parts Rejected 4 | . . . . . . . . 1 . . . . . 1 1 . . . . . . . . . 1 Parts Fused 1 | . . . . . . . . 1 . . . . . . . . . . . . . . . . . Data Loss (minor) 25 | . . . . . . 1 3 1 . . 1 . . 1 2 5 . . 1 1 . 1 . 5 3 Data Loss (major) 9 | . . . . . . . . 1 . . . . . . . 2 . . . 1 . . . 5 . Misfires 15 | . . . . . . 1 2 . . . 1 . 1 . 2 1 . . . 1 . . . 3 3 Alerts 4 | . . . . . . . 1 . . . . . . . . . . . . . . . . 1 2 Misdirections 1 | . . . . . . . . . . . . . . . . . . . . . . . . . 1 Weapon Failures 23 | . . . . . . . 1 1 . . . . . 1 . . . . . . . . . 8 12 Overload Shots 21 | . . . . . . 11 10 . . . . . . . . . . . . . . . . . . Effects 1 | . . . . . . . 1 . . . . . . . . . . . . . . . . . . Heat Surge 1 | . . . . . . . 1 . . . . . . . . . . . . . . . . . . Overflow Damage 1542 | . . 8 . . 115 50 72 . . . . . 23 132 33 9 . 104 250 . . 20 45 508 173 Projectiles 554 | . . . . . . 1 . . . . . . . 12 . . . . . . . 20 45 373 103 Explosions 637 | . . 8 . . 115 49 27 . . . . . . 120 . 9 . 104 . . . . . 135 70 Melee 351 | . . . . . . . 45 . . . . . 23 . 33 . . . 250 . . . . . . Knockbacks 30 | . . . . . . . . . . . . . . . . . . . 1 7 . 2 9 . 11 Impact . | . . . . . . . . . . . . . . . . . . . . . . . . . . Kinetic 30 | . . . . . . . . . . . . . . . . . . . 1 7 . 2 9 . 11 Secondary . | . . . . . . . . . . . . . . . . . . . . . . . . . . Self-Inflicted Damage 764 | . 49 . . . 99 65 105 . . . . . 52 79 . 19 . 143 . . . 40 . 62 51 Shots 18 | . 4 . . . 1 1 3 . . . . . 1 2 . 1 . 1 . . . 2 . 1 1 Rammed 1 | . . . . . . . . . . . . . . 1 . . . . . . . . . . . Targets Rammed 7 | . . . . . . 1 . 4 . . . . . 1 . . . . . . . . . 1 . Kicked 6 | . . . . . . 1 . 4 . . . . . . . . . . . . . . . 1 . Crushed . | . . . . . . . . . . . . . . . . . . . . . . . . . . Highest Temperature 496 | . 304 159 . 192 281 242 222 256 . . 259 227 309 316 202 151 . . 235 259 . 175 198 496 175 Average Temperature 79 | . 100 46 . 58 65 57 43 65 . . 92 115 92 101 82 51 . . 79 58 . 64 108 82 56 Received Heat Transfer 3467 | . 294 162 . 39 549 228 273 126 . . . 36 417 432 36 9 . 48 132 148 . . 310 54 174 Siege Activations 1 | . . . . . . . . . . . . . 1 . . . . . . . . . . . . Total Turns 23 | . . . . . . . . . . . . . 23 . . . . . . . . . . . . Longest Duration 23 | . . . . . . . . . . . . . 23 . . . . . . . . . . . . Martial Activations . | . . . . . . . . . . . . . . . . . . . . . . . . . . Shielding Activations 5 | . . . . . . . . . . . . . . . . . . . . . . . . . 5 Total Turns 99 | . . . . . . . . . . . . . . . . . . . . . . . . . 99 Longest Duration 36 | . . . . . . . . . . . . . . . . . . . . . . . . . 36 Robots Disrupted . | . . . . . . . . . . . . . . . . . . . . . . . . . . Combat Hostiles . | . . . . . . . . . . . . . . . . . . . . . . . . . . Robots Corrupted . | . . . . . . . . . . . . . . . . . . . . . . . . . . Combat Hostiles . | . . . . . . . . . . . . . . . . . . . . . . . . . . Parts Fried 2 | . 2 . . . . . . . . . . . . . . . . . . . . . . . . Impact Corruptions . | . . . . . . . . . . . . . . . . . . . . . . . . . . Robots Melted 26 | . . 1 . . . 1 1 1 . . . . 5 4 . . . . . 1 . . 3 7 2 Combat Hostiles 20 | . . 1 . . . 1 1 1 . . . . 5 2 . . . . . 1 . . 2 5 1 Parts Melted 112 | . . 2 . . 1 2 11 9 . . 2 3 22 17 . . 1 . . 2 . . 5 31 4 Heat Transferred 39681 | . 75 629 . 605 50 1217 4158 3800 . . 700 1349 9152 4818 . 555 111 50 272 286 . 1016 1848 7474 1516 Parts Sabotaged . | . . . . . . . . . . . . . . . . . . . . . . . . . . Parts Stolen . | . . . . . . . . . . . . . . . . . . . . . . . . . . Parts Stripped . | . . . . . . . . . . . . . . . . . . . . . . . . . . Power Chain Reactions 3 | . . . . . . 2 . . . . . . . . . . . . 1 . . . . . . Alert | -11 -10 -10 -10 -9 -8 -7 -7 -7 -7 -7 -6 -6 -6 -5 -5 -5 -5 -4 -4 -4 -3 -3 -2 -1 -1 ------- Run | Yrd Mat Min Exi Min Mat Fac Gar Fac Low Dat Pro Fac Gar Fac Upp Upp War Pro Fac Gar Res DSF Res Acc Com Maximum Alert Level 5 | . . . . . 2 2 5 3 . . . . 4 5 . . . . 1 4 2 3 2 4 4 Low Security (%) 33 | 100 100 100 . 100 27 57 . . . . . 100 13 . . . . . 96 13 . . . 21 . Level 1 16 | . . . . . 41 4 10 . . . . . 11 . . . . . 3 13 . . 90 27 . Level 2 14 | . . . . . 30 38 5 . . . . . 28 14 . . . . . 22 100 51 9 5 1 Level 3 20 | . . . . . . . 21 100 . . . . 33 55 . . . . . 38 . 48 . 17 59 Level 4 10 | . . . . . . . 31 . . . . . 13 16 . . . . . 12 . . . 27 38 Level 5 2 | . . . . . . . 30 . . . . . . 5 . . . . . . . . . . . High Security . | . . . . . . . . . . . . . . 7 . . . . . . . . . . . Max Security . | . . . . . . . . . . . . . . . . . . . . . . . . . . Sterilizations 1 | . . . . . . . . . . . . . . . . . . . . . . 1 . . . Peak Influence 2279 | . 134 152 . 142 622 618 2009 1054 . . . 39 1344 2279 . . . . 232 1160 652 734 431 1553 1154 Initial 1054 | . . 26 . . 29 231 343 1054 . . . 17 21 705 . . . . 126 52 652 466 412 132 992 Average 538 | . 33 34 . 67 300 260 1259 841 . . . 8 668 1087 . . . . 98 665 637 631 294 677 1017 Influence Increases 16544 | . 331 292 . 316 1280 1113 1756 417 . . 180 117 1423 2803 266 359 93 310 689 1178 . 288 473 2425 435 Destroy 0b10 Robot/C 7640 | . 160 200 . 220 800 340 740 260 . . 160 60 740 780 60 180 40 280 380 460 . 220 240 1080 240 Destroy 0b10 Robot/NC 445 | . 30 5 . . 60 90 5 35 . . . 10 25 55 5 . . . 20 5 . 5 15 80 . Destroy Leader 1318 | . 38 50 . 30 202 130 40 64 . . 20 22 60 150 10 20 . 30 84 30 . 30 74 204 30 Allied During Kill 242 | . . . . 25 51 . 95 4 . . . . 7 29 11 9 8 . . 3 . . . . . Successful Hack 430 | . 19 . . . 43 125 43 8 . . . 8 10 50 . . . . 56 24 . . 18 23 3 Disable Machine 1050 | . 30 . . 15 60 345 120 . . . . . 60 240 . . . . 30 30 . . . 105 15 Anti-Garrison Action 1250 | . . . . . . . 500 . . . . . 300 . . . . . . 300 . . . 150 . Destroy Structure 2234 | . 54 37 . 11 64 68 198 16 . . . 2 131 464 . . . . 74 131 . 18 96 723 147 Partial Spotted 45 | . . . . . . . . . . . . 15 . 15 . . . . 15 . . . . . . Lose Combat Pursuer 1890 | . . . . 15 . 15 15 30 . . . . 90 1020 180 150 45 . 30 195 . 15 30 60 . Influence Decreases 15925 | . 263 360 . 238 850 1131 237 1543 357 526 152 115 109 1868 1184 654 1130 139 814 93 538 176 987 1094 1367 Entered New Map 6911 | . . 42 . . 49 277 147 955 327 526 . 11 9 639 844 260 1066 29 74 23 508 156 322 88 559 Time Decay 6143 | . 263 282 . 238 571 674 . 398 30 . 142 104 . 589 270 334 17 90 530 . 30 . 565 618 398 Lost Part 1366 | . . 36 . . 20 30 30 20 . . 10 . 100 270 30 20 . 20 50 50 . 20 100 150 410 Lost Ally 367 | . . . . . 60 . 60 20 . . . . . 70 40 40 47 . 10 20 . . . . . Purge Threat 1138 | . . . . . 150 150 . 150 . . . . . 300 . . . . 150 . . . . 238 . Squads Dispatched 91 | . . . . 1 4 14 . 7 . . . 3 . 29 . . . . 10 . . 2 . 17 4 Investigation 14 | . . . . 1 2 4 . . . . . . . 4 . . . . 2 . . . . 1 . Extermination 26 | . . . . . . 5 . 2 . . . 1 . 5 . . . . 4 . . . . 8 1 Reinforcement 25 | . . . . . 2 1 . 3 . . . 1 . 10 . . . . 1 . . 2 . 4 1 Assault 15 | . . . . . . 1 . 2 . . . . . 7 . . . . . . . . . 3 2 Garrison 11 | . . . . . . 3 . . . . . 1 . 3 . . . . 3 . . . . 1 . Intercept . | . . . . . . . . . . . . . . . . . . . . . . . . . . Searches Triggered . | . . . . . . . . . . . . . . . . . . . . . . . . . . Data Miner Redirects 6 | . . . . . . . . . . . . . . 1 . . . . 1 . . . . 2 2 Construction Impeded 4 | . . . . . . 1 . . . . . . . 2 . . . . . . . . . 1 . Haulers Reinforced 4 | . . . . . . . . . . . . . . 3 . . . . . . . . . 1 . Active Scanning Responses . | . . . . . . . . . . . . . . . . . . . . . . . . . . Cargo Convoy Interrupts 1 | . . . . . . . . . . . . . . 1 . . . . . . . . . . . Stealth | -11 -10 -10 -10 -9 -8 -7 -7 -7 -7 -7 -6 -6 -6 -5 -5 -5 -5 -4 -4 -4 -3 -3 -2 -1 -1 --------- Run | Yrd Mat Min Exi Min Mat Fac Gar Fac Low Dat Pro Fac Gar Fac Upp Upp War Pro Fac Gar Res DSF Res Acc Com Distress Signals 26 | . 1 1 . . 4 1 . 2 . . . . . 1 . . . . 1 . . . 9 5 1 Communications Jammed . | . . . . . . . . . . . . . . . . . . . . . . . . . . Distress Signals . | . . . . . . . . . . . . . . . . . . . . . . . . . . Times Spotted 624 | . 13 9 . 13 47 28 30 25 . . 7 12 39 125 13 13 22 9 34 29 . 11 34 76 35 Peak Tracking Total 25 | . 2 5 . 4 6 3 7 5 . . 4 7 6 25 6 9 13 4 5 5 . 4 5 7 5 Tactical Retreats 52 | . . . . 1 . 1 1 2 . . . . 2 17 7 4 2 . 1 9 . 1 2 2 . Traps | -11 -10 -10 -10 -9 -8 -7 -7 -7 -7 -7 -6 -6 -6 -5 -5 -5 -5 -4 -4 -4 -3 -3 -2 -1 -1 ------- Run | Yrd Mat Min Exi Min Mat Fac Gar Fac Low Dat Pro Fac Gar Fac Upp Upp War Pro Fac Gar Res DSF Res Acc Com Traps Triggered 35 | . . . . . 1 7 5 . . . . 1 7 . . . . . . 7 . . . 6 1 Indirectly 1 | . . . . . . . . . . . . . . . . . . . . 1 . . . . . Trap Hack Attempts . | . . . . . . . . . . . . . . . . . . . . . . . . . . Triggered . | . . . . . . . . . . . . . . . . . . . . . . . . . . Disarmed . | . . . . . . . . . . . . . . . . . . . . . . . . . . Reprogrammed 6 | . 6 . . . . . . . . . . . . . . . . . . . . . . . . Reused . | . . . . . . . . . . . . . . . . . . . . . . . . . . Traps Extracted . | . . . . . . . . . . . . . . . . . . . . . . . . . . Installed . | . . . . . . . . . . . . . . . . . . . . . . . . . . Triggered . | . . . . . . . . . . . . . . . . . . . . . . . . . . Machines | -11 -10 -10 -10 -9 -8 -7 -7 -7 -7 -7 -6 -6 -6 -5 -5 -5 -5 -4 -4 -4 -3 -3 -2 -1 -1 ---------- Run | Yrd Mat Min Exi Min Mat Fac Gar Fac Low Dat Pro Fac Gar Fac Upp Upp War Pro Fac Gar Res DSF Res Acc Com Machines Disabled 88 | . 2 . . 1 4 23 17 . . . . . 8 16 . . . . 2 6 . . . 8 1 Max in Single Turn 8 | . 1 . . 1 1 8 2 . . . . . 1 4 . . . . 2 1 . . . 1 1 Garrison Access 11 | . . . . . 1 2 . 1 . . . 1 . 2 . . . . . . . . 2 2 . Garrison Relay 13 | . . . . . . . 5 . . . . . 4 . . . . . . 4 . . . . . Phase Generator 1 | . . . . . . . 1 . . . . . . . . . . . . . . . . . . Machines Repaired . | . . . . . . . . . . . . . . . . . . . . . . . . . . Machines Dismantled . | . . . . . . . . . . . . . . . . . . . . . . . . . . Machines Sabotaged . | . . . . . . . . . . . . . . . . . . . . . . . . . . Overloaded Fab Kills . | . . . . . . . . . . . . . . . . . . . . . . . . . . Hacking | -11 -10 -10 -10 -9 -8 -7 -7 -7 -7 -7 -6 -6 -6 -5 -5 -5 -5 -4 -4 -4 -3 -3 -2 -1 -1 --------- Run | Yrd Mat Min Exi Min Mat Fac Gar Fac Low Dat Pro Fac Gar Fac Upp Upp War Pro Fac Gar Res DSF Res Acc Com Machines Accessed 138 | . 10 . 1 1 16 27 4 6 . 4 . 7 2 14 2 3 5 . 16 1 1 . 2 13 3 Terminals 65 | . 7 . . . 11 14 4 2 . . . 1 2 6 . . . . 7 1 1 . . 6 3 Fabricators 7 | . . . . . . 1 . 2 . . . . . 2 . . . . 1 . . . . 1 . Repair Stations 9 | . 1 . . . . 1 . . . . . 1 . 2 . . . . 2 . . . . 2 . Recycling Units 17 | . 2 . . . 2 4 . 1 . . . 1 . 1 . . . . 4 . . . . 2 . Scanalyzers 10 | . . . . . 2 4 . . . . . 2 . . . . . . 1 . . . 1 . . Garrison Access 14 | . . . . . 1 3 . 1 . . . 2 . 3 . . . . 1 . . . 1 2 . Total Hacks 389 | . 24 . 1 1 44 57 9 16 . 27 . 15 5 40 5 7 14 . 78 5 2 . 3 32 4 Successful 229 | . 17 . 1 1 24 29 5 9 . 27 . 13 2 20 5 7 14 . 38 2 1 . 1 11 2 Failed 159 | . 7 . . . 20 27 4 7 . . . 2 3 20 . . . . 40 3 1 . 2 21 2 Catastrophic 30 | . 1 . . . 6 5 . 2 . . . . 2 3 . . . . 3 1 . . 1 5 1 Database Lockouts 1 | . . . . . . 1 . . . . . . . . . . . . . . . . . . . Manual 117 | . 13 . 1 . 25 23 2 1 . . . . 1 13 . . 1 . 29 4 . . . 3 1 Terminals 215 | . 18 . . . 35 34 9 9 . . . 1 5 21 . . . . 53 5 2 . . 19 4 Fabricators 18 | . . . . . . 3 . 2 . . . . . 6 . . . . 4 . . . . 3 . Repair Stations 21 | . 2 . . . . 3 . . . . . 3 . 5 . . . . 5 . . . . 3 . Recycling Units 35 | . 4 . . . 4 7 . 2 . . . 1 . 2 . . . . 12 . . . . 3 . Scanalyzers 23 | . . . . . 4 6 . . . . . 8 . . . . . . 3 . . . 2 . . Garrison Access 22 | . . . . . 1 4 . 3 . . . 2 . 6 . . . . 1 . . . 1 4 . Terminal Hacks 122 | . 7 . 1 1 9 8 5 3 . 27 . . 2 5 5 7 14 . 17 2 1 . . 6 2 Record 33 | . . . . . . . . . . 11 . . . . 4 5 12 . 1 . . . . . . Part Schematic 13 | . . . . . 1 2 . . . 8 . . . . . . . . 2 . . . . . . Robot Schematic 5 | . . . . . . . . . . 5 . . . . . . . . . . . . . . . Robot Analysis 3 | . 1 . . . 1 1 . . . . . . . . . . . . . . . . . . . Prototype ID Bank 3 | . . . . . . . . . . 3 . . . . . . . . . . . . . . . Open Door 8 | . . . . 1 . . 1 . . . . . . . 1 2 2 . . . . . . . 1 Open DSF 1 | . . . . . . . . . . . . . . . . . . . . . 1 . . . . Branch Access Points 5 | . . . . . 1 1 . 1 . . . . . . . . . . 1 . . . . 1 . Emergency Access Points 4 | . . . . . . . 1 . . . . . 1 . . . . . . 1 . . . 1 . Machine Index 1 | . . . . . . . . . . . . . . . . . . . 1 . . . . . . Terminal Index 2 | . . . . . . 1 . . . . . . . . . . . . 1 . . . . . . Fabricator Index 1 | . . . . . . . . . . . . . . . . . . . 1 . . . . . . Alert Level 11 | . . . . . 2 . . 1 . . . . . 3 . . . . 3 . . . . 2 . Unreport Threat 8 | . . . . . 1 1 . 1 . . . . . 2 . . . . 1 . . . . 2 . Locate Traps 6 | . 3 . . . 2 . . . . . . . . . . . . . 1 . . . . . . Reprogram Traps 1 | . 1 . . . . . . . . . . . . . . . . . . . . . . . . Security Status 1 | . . . . . . . . . . . . . . . . . . . 1 . . . . . . Recall Investigation 2 | . . . . . . 1 . . . . . . . . . . . . 1 . . . . . . Registered Components 3 | . 1 . . . 1 . . . . . . . . . . . . . 1 . . . . . . Registered Prototypes 1 | . . . . . . . . . . . . . . . . . . . 1 . . . . . . Zone Layout 4 | . 1 . . . . 1 1 . . . . . . . . . . . 1 . . . . . . Patrol Navigation 3 | . . . . . . . 1 . . . . . 1 . . . . . . 1 . . . . . Security Stations 1 | . . . . . . . 1 . . . . . . . . . . . . . . . . . . Proto ID Catalog 1 | . . . 1 . . . . . . . . . . . . . . . . . . . . . . Disengage Seal 1 | . . . . . . . . . . . . . . . . . . . . . . . . . 1 Fabricator Hacks 12 | . . . . . . 2 . 2 . . . . . 4 . . . . 3 . . . . 1 . Network Status 2 | . . . . . . . . . . . . . . 1 . . . . 1 . . . . . . Load Schematic 5 | . . . . . . 1 . 1 . . . . . 1 . . . . 1 . . . . 1 . Build 5 | . . . . . . 1 . 1 . . . . . 2 . . . . 1 . . . . . . Repair Station Hacks 13 | . 2 . . . . 2 . . . . . 2 . 2 . . . . 4 . . . . 1 . Scan Component 7 | . 1 . . . . 1 . . . . . 1 . 1 . . . . 2 . . . . 1 . Repair 6 | . 1 . . . . 1 . . . . . 1 . 1 . . . . 2 . . . . . . Recycling Unit Hacks 26 | . 3 . . . 4 5 . 2 . . . 1 . 2 . . . . 7 . . . . 2 . Process 1 | . . . . . 1 . . . . . . . . . . . . . . . . . . . . Report Inventory 17 | . 2 . . . 2 4 . 1 . . . 1 . 1 . . . . 4 . . . . 2 . Retrieve Matter 1 | . . . . . 1 . . . . . . . . . . . . . . . . . . . . Retrieve Components 7 | . 1 . . . . 1 . 1 . . . . . 1 . . . . 3 . . . . . . Scanalyzer 19 | . . . . . 4 4 . . . . . 8 . . . . . . 2 . . . 1 . . Insert Component 1 | . . . . . . . . . . . . 1 . . . . . . . . . . . . . Analyze 3 | . . . . . . . . . . . . 3 . . . . . . . . . . . . . Retrieve Study 15 | . . . . . 4 4 . . . . . 4 . . . . . . 2 . . . 1 . . Garrison Access Hacks 11 | . . . . . 1 3 . 1 . . . 2 . 2 . . . . 1 . . . . 1 . Unlock Access 3 | . . . . . . 1 . . . . . 1 . . . . . . 1 . . . . . . Seal Access 8 | . . . . . 1 2 . 1 . . . 1 . 2 . . . . . . . . . 1 . Unauthorized Hacks 26 | . 5 . . . 6 5 . 1 . . . . . 5 . . . . 4 . . . . . . Terminals 26 | . 5 . . . 6 5 . 1 . . . . . 5 . . . . 4 . . . . . . Assimilate 3 | . . . . . . . . . . . . . . 2 . . . . 1 . . . . . . Botnet 23 | . 5 . . . 6 5 . 1 . . . . . 3 . . . . 3 . . . . . . Fabricators . | . . . . . . . . . . . . . . . . . . . . . . . . . . Repair Stations . | . . . . . . . . . . . . . . . . . . . . . . . . . . Recycling Units . | . . . . . . . . . . . . . . . . . . . . . . . . . . Scanalyzers . | . . . . . . . . . . . . . . . . . . . . . . . . . . Garrison Access . | . . . . . . . . . . . . . . . . . . . . . . . . . . Data Cores Recovered 5 | . . . . . 1 2 . . . . . . . . . . . . 1 . . . 1 . . Used 2 | . . . . . 1 1 . . . . . . . . . . . . . . . . . . . Hacking Detections 90 | . 9 . . . 13 21 3 4 . . . 3 1 9 . . . . 10 1 . . 2 13 1 Full Trace Events 13 | . 1 . . . 2 3 1 . . . . . . 3 . . . . 2 . . . . 1 . Feedback Events 4 | . . . . . . 1 1 . . . . . . 1 . . . . . . . . . 1 . Corruption 3 | . . . . . . 1 1 . . . . . . . . . . . . . . . . 1 . Hackware Fried 1 | . . . . . . . . . . . . . . 1 . . . . . . . . . . . Feedback Blocked . | . . . . . . . . . . . . . . . . . . . . . . . . . . Robot Schematics Acquired 5 | . . . . . . . . . . 5 . . . . . . . . . . . . . . . Robots Built . | . . . . . . . . . . . . . . . . . . . . . . . . . . Authchips . | . . . . . . . . . . . . . . . . . . . . . . . . . . Time . | . . . . . . . . . . . . . . . . . . . . . . . . . . Total Robot Build Rating . | . . . . . . . . . . . . . . . . . . . . . . . . . . Part Schematics Acquired 14 | . . . . . 1 2 . . . 8 . 1 . . . . . . 2 . . . . . . Parts Built 8 | . . . . . . 2 . . . . . . . 4 . . . . 2 . . . . . . Authchips . | . . . . . . . . . . . . . . . . . . . . . . . . . . Time 323 | . . . . . . 42 . 42 . . . . . 170 . . . . 69 . . . . . . Total Part Build Rating 50 | . . . . . . 8 . . . . . . . 24 . . . . 18 . . . . . . Part Studies Acquired 14 | . . . . . 3 4 . . . . . 4 . . . . . . 2 . . . 1 . . Parts Repaired 6 | . 1 . . . . 1 . . . . . 1 . 1 . . . . 2 . . . . . . Time 231 | . 26 . . . . 19 . . . . . 22 . 34 . . . . 130 . . . . . . Parts Recycled . | . . . . . . . . . . . . . . . . . . . . . . . . . . Recycled Matter 15 | . . . . . 15 . . . . . . . . . . . . . . . . . . . . Retrieved Matter 15 | . . . . . 15 . . . . . . . . . . . . . . . . . . . . Retrieved Components 26 | . 3 . . . . 3 . 2 . . . . . 3 . . . . 15 . . . . . . Parts Scanalyzed 1 | . . . . . . . . . . . . 1 . . . . . . . . . . . . . Part Schematics Acquired 1 | . . . . . . . . . . . . 1 . . . . . . . . . . . . . Parts Damaged . | . . . . . . . . . . . . . . . . . . . . . . . . . . Bothacking | -11 -10 -10 -10 -9 -8 -7 -7 -7 -7 -7 -6 -6 -6 -5 -5 -5 -5 -4 -4 -4 -3 -3 -2 -1 -1 ------------ Run | Yrd Mat Min Exi Min Mat Fac Gar Fac Low Dat Pro Fac Gar Fac Upp Upp War Pro Fac Gar Res DSF Res Acc Com Used RIF Installer . | . . . . . . . . . . . . . . . . . . . . . . . . . . Robots Hacked . | . . . . . . . . . . . . . . . . . . . . . . . . . . Non-combat . | . . . . . . . . . . . . . . . . . . . . . . . . . . Combat . | . . . . . . . . . . . . . . . . . . . . . . . . . . Robot Hacks Applied . | . . . . . . . . . . . . . . . . . . . . . . . . . . Relay Couplers Released 53 | . . . . . . . 18 . . . . . 18 . . . . . . 14 . . 2 1 . Machine Destruction 53 | . . . . . . . 18 . . . . . 18 . . . . . . 14 . . 2 1 . Fabnet Peak Effective % . | . . . . . . . . . . . . . . . . . . . . . . . . . . Robots Rewired 16 | . . . . . . . 5 . . . . . 3 . . 2 5 . . 1 . . . . . Allies Hacked 1 | . . . . . . . . . . . . . . . . 1 . . . . . . . . . Hacks Repelled 1 | . . . . . . . . . . . . . . 1 . . . . . . . . . . . Allies | -11 -10 -10 -10 -9 -8 -7 -7 -7 -7 -7 -6 -6 -6 -5 -5 -5 -5 -4 -4 -4 -3 -3 -2 -1 -1 -------- Run | Yrd Mat Min Exi Min Mat Fac Gar Fac Low Dat Pro Fac Gar Fac Upp Upp War Pro Fac Gar Res DSF Res Acc Com Total Allies 23 | . . . . 3 . . 5 . . . . . 3 1 2 2 5 . 1 1 . . . . . Largest Group 5 | . . . . 3 3 . 5 2 . . . . 3 3 2 2 5 . 1 1 . . . . . Highest-Rated Group 284 | . . . . 40 40 . 152 64 . . . . 113 113 62 59 284 . 45 85 . . . . . Highest-Rated Ally 85 | . . . . 16 16 . 32 32 . . . . 46 46 31 30 68 . 45 85 . . . . . Initial Warlord ECA Mod 29 | . . . . . . . . 11 11 11 10 10 9 16 14 14 14 13 13 13 20 20 29 28 28 Warlord Squad Rendezvous 3 | . . . . . . . . . . . . 1 . 2 . . . . . . . . . . . Dakka 1 | . . . . . . . . . . . . . . 1 . . . . . . . . . . . Infantry 1 | . . . . . . . . . . . . 1 . . . . . . . . . . . . . Muscle 1 | . . . . . . . . . . . . . . 1 . . . . . . . . . . . Total Orders . | . . . . . . . . . . . . . . . . . . . . . . . . . . Ally Attacks 128 | . . . . 9 34 . 31 4 . . . . . 7 21 8 9 . . 5 . . . . . Total Damage 2744 | . . . . 95 360 . 797 146 . . . . . 205 336 91 378 . . 336 . . . . . Kills 28 | . . . . 3 5 . 9 2 . . . . . 2 3 1 2 . . 1 . . . . . Allies Corrupted . | . . . . . . . . . . . . . . . . . . . . . . . . . . Allies Melted 2 | . . 1 . . . . . . . . . . . . . . . . . . . . . . 1 Intel | -11 -10 -10 -10 -9 -8 -7 -7 -7 -7 -7 -6 -6 -6 -5 -5 -5 -5 -4 -4 -4 -3 -3 -2 -1 -1 ------- Run | Yrd Mat Min Exi Min Mat Fac Gar Fac Low Dat Pro Fac Gar Fac Upp Upp War Pro Fac Gar Res DSF Res Acc Com Active Infowar (turns) 4015 | . . . . . . 790 . . . . . . 2 86 581 751 558 188 843 . . . . . 216 Optics 3221 | . . . . . . . . . . . . . . 84 581 751 558 188 843 . . . . . 216 Traps 1 | . . . . . . . . . . . . . . . 1 . . . . . . . . . . Decoding 545 | . . . . . . . . . . . . . . . . 73 472 . . . . . . . . Machine Analysis 790 | . . . . . . 790 . . . . . . . . . . . . . . . . . . . Cloaking 48 | . . . . . . . . . . . . . . . . . . . 48 . . . . . . Jamming 4 | . . . . . . . . . . . . . 2 2 . . . . . . . . . . . Robot Analysis Total 3 | . 1 . . . 1 1 . . . . . . . . . . . . . . . . . . . Derelict Logs Recovered 10 | . . 2 . 1 . . . . 1 . 2 . . . 1 1 . 2 . . . . . . . Drone Launches . | . . . . . . . . . . . . . . . . . . . . . . . . . . Drone Recoveries . | . . . . . . . . . . . . . . . . . . . . . . . . . . Exploration | -11 -10 -10 -10 -9 -8 -7 -7 -7 -7 -7 -6 -6 -6 -5 -5 -5 -5 -4 -4 -4 -3 -3 -2 -1 -1 ------------- Run | Yrd Mat Min Exi Min Mat Fac Gar Fac Low Dat Pro Fac Gar Fac Upp Upp War Pro Fac Gar Res DSF Res Acc Com Turns Passed 25367 | 74 1030 845 581 566 2107 2621 1733 940 60 40 477 482 1376 2009 581 751 558 188 1499 1364 75 265 1690 2438 1017 Spaces Moved 24553 | 49 678 588 483 397 1442 2216 1285 715 134 94 995 715 1140 2641 1167 971 1241 609 2249 1069 64 124 1400 1513 574 Core 39 | 5 . . . . 1 . . . . . . . . 29 . . . . . . . . . . 4 Treads . | . . . . . . . . . . . . . . . . . . . . . . . . . . Legs 11540 | 44 678 588 483 397 1441 2216 1285 470 . . . . . . . . . . . 267 64 124 1400 1513 570 Wheels . | . . . . . . . . . . . . . . . . . . . . . . . . . . Hover 9784 | . . . . . . . . 245 134 94 995 715 1140 2172 611 971 243 . 1662 802 . . . . . Flight 3190 | . . . . . . . . . . . . . . 440 556 . 998 609 587 . . . . . . Fastest Speed 20 | 50 120 120 120 120 90 90 97 40 40 40 40 43 48 25 25 46 22 20 20 50 112 112 105 105 50 Average Speed 73 | 117 120 120 120 122 111 94 102 82 40 40 41 45 52 49 37 46 29 20 41 75 112 118 105 106 114 Slowest Speed 550 | 190 120 120 120 190 550 176 105 162 40 40 43 52 160 111 120 46 111 22 112 250 112 120 120 175 117 Overloaded Moves 131 | . . . . . . . . . . . . . . 124 6 . 1 . . . . . . . . Propulsion Burnouts 1 | . . . . . . . . . . . . . . 1 . . . . . . . . . . . Robots Hopped 7 | . . . . . . . . . . . . . . 1 2 . . . 4 . . . . . . Potential Cave-ins 5 | . . . . . . . . . . . . . . 5 . . . . . . . . . . . Cave-ins Triggered 1 | . . . . . . 1 . . . . . . . . . . . . . . . . . . . Exploration Rate (%) 61 | 3 95 89 92 62 99 60 98 22 25 70 98 20 91 55 90 69 96 84 37 80 2 74 38 38 15 Regions Visited 25 Branch Regions 11 Pre-discovered Areas 10 | . . . . 1 . . . . 2 1 2 . . . 1 1 . 2 . . . . . . . Known Exits Taken 9 | . . . . . 1 1 . 1 . . . 1 . . 1 . . . 1 . 1 . 1 1 . Unknown Exits Taken 12 | 1 1 1 1 1 . . . . 1 1 1 . . 1 . 1 1 1 . . . . . . . Scrap Searched 10 | . . 1 . 1 . . . . . . 1 . . . 4 3 . . . . . . . . . Spaces Dug 205 | . . . . . . 27 15 . . . . 2 1 66 . . . . 31 2 . . 2 59 . Terrain Destroyed 1767 | . 66 47 . 11 69 82 248 14 . . 71 2 32 330 . 110 . 223 44 18 . 9 42 286 63 Melee 41 | . . . . . . . . . . . . 2 1 5 . . . . 31 2 . . . . . Projectile 454 | . . . . . 31 71 2 . . . . . . 46 . . . 7 10 14 . 9 42 198 24 AOE 1269 | . 66 47 . 11 37 11 246 14 . . 71 . 31 279 . 110 . 216 3 . . . . 88 39 Terrain Rammed . | . . . . . . . . . . . . . . . . . . . . . . . . . . Walls Destroyed . | . . . . . . . . . . . . . . . . . . . . . . . . . . Machines Disabled . | . . . . . . . . . . . . . . . . . . . . . . . . . . Actions | -11 -10 -10 -10 -9 -8 -7 -7 -7 -7 -7 -6 -6 -6 -5 -5 -5 -5 -4 -4 -4 -3 -3 -2 -1 -1 --------- Run | Yrd Mat Min Exi Min Mat Fac Gar Fac Low Dat Pro Fac Gar Fac Upp Upp War Pro Fac Gar Res DSF Res Acc Com Total 29639 | 62 780 691 485 456 1792 2658 1550 961 139 96 1040 842 1657 3171 1290 1245 1435 660 2654 1394 66 201 1541 1994 779 Wait 2429 | 8 15 52 . 31 145 298 101 175 5 . 27 85 217 269 90 221 89 22 184 62 . 16 38 212 67 Move 24519 | 48 677 587 482 396 1441 2216 1284 714 133 93 994 715 1139 2638 1162 970 1240 608 2243 1068 63 123 1399 1512 574 Hop 5 | . . . . . . . . . . . . . . 1 2 . . . 2 . . . . . . Pick Up 192 | . 7 2 1 4 28 15 6 4 1 . 4 4 8 22 5 1 1 . 23 11 . 5 15 15 10 Fast Attach 284 | 6 5 3 . 4 23 19 6 3 . 1 . 7 16 42 7 5 12 6 36 9 . 5 15 31 23 Attach 128 | . 1 3 . . 10 2 6 5 . . 4 2 11 22 4 2 . 3 9 11 2 2 6 15 8 Detach 47 | . . . . . 2 3 2 3 . 1 2 2 6 11 1 1 3 2 4 2 . . . 1 1 Swap 177 | . 5 5 . 2 17 8 9 4 . . . 5 15 23 . 1 1 1 10 8 1 13 11 26 12 Drop 341 | . 6 5 2 8 48 23 15 6 . 1 2 9 18 36 6 3 16 5 39 18 . 16 24 25 10 Fire 1087 | . 64 34 . 11 78 68 72 43 . . 7 11 104 101 . 26 3 13 42 127 . 21 33 156 73 Melee 133 | . . . . . . . 15 . . . . 2 23 5 13 . . . 61 14 . . . . . Ram 1 | . . . . . . . . . . . . . . 1 . . . . . . . . . . . Kick 6 | . . . . . . 1 . 4 . . . . . . . . . . . . . . . 1 . Crush . | . . . . . . . . . . . . . . . . . . . . . . . . . . Escape Stasis 160 | . . . . . . 5 15 . . . . . 79 . . . . . . 61 . . . . . Rewire 129 | . . . . . . . 19 . . . . . 21 . . 15 70 . . 3 . . . . 1 Trap . | . . . . . . . . . . . . . . . . . . . . . . . . . . Miscellaneous 1 | . . . . . . . . . . . . . . . . . . . 1 . . . . . . Route ------- -11/Scrapyard -10/Materials (discovered 5 exits: [*Mat x3] / [*Min x2]) -10/Mines (discovered 4 exits: [*Mat x2] / *Exi / [*Sub]) -10/Exiles (discovered 2 exits: *Min x2) -9/Mines (discovered 2 exits: *Mat x2) -8/Materials (discovered 3 exits: *Fac x3) -7/Factory (discovered 7 exits: *Fac x2 / Sto x2 / *Low x2 / Gar) -7/Garrison (discovered 3 exits: *Fac x3) -7/Factory (discovered 4 exits: *Fac / Sto / *Low x2) -7/Lower Caves -7/Data Miner -6/Proximity Caves -6/Factory (discovered 2 exits: [*Ext] / Gar) -6/Garrison (discovered 3 exits: *Fac x3) -5/Factory (discovered 2 exits: *Fac / *Upp) -5/Upper Caves -5/Upper Caves (discovered 2 exits: *Fac / *War) -5/Warlord -4/Proximity Caves -4/Factory (discovered 6 exits: *Res x2 / *Upp x2 / Arm / Gar) -4/Garrison (discovered 2 exits: *Res x2) -3/Research (discovered 2 exits: Qua / DSF) -3/DSF -2/Research (discovered 2 exits: *Acc / *Tes) -1/Access -1/Command (discovered 1 exit: [*Sur]) History --------- Turn | Location | Event 14 | -11/Scrapyard | Discovered new exit (range 16) 75 | -11/Scrapyard | Entered Materials 187 | -10/Materials | Discovered new exit (range 16) 322 | -10/Materials | Build established: Mutant 376 | -10/Materials | Discovered new exit (range 15) 516 | -10/Materials | Discovered new exit (range 16) 716 | -10/Materials | Discovered new exit (range 4) 756 | -10/Materials | Repaired EM Pulse Gun 963 | -10/Materials | Discovered new exit (range 15) 1105 | -10/Materials | Entered Mines 1160 | -10/Mines | Discovered new exit (range 10) 1239 | -10/Mines | Discovered new exit (range 7) 1301 | -10/Mines | Core integrity fell below 50% 1513 | -10/Mines | Learned Materials terminal intel 1532 | -10/Mines | Learned 4 Materials zone layouts 1618 | -10/Mines | Build established: Scavenger-Mutant 1743 | -10/Mines | Discovered new exit (range 10) 1902 | -10/Mines | Assembled infested the area 1945 | -10/Mines | Deemed a non-threat by the Exiles lab entrance 1945 | -10/Mines | Discovered new exit (range 5) 1950 | -10/Mines | Entered Exiles 1968 | -10/Exiles | Discovered new exit (range 15) 1982 | -10/Exiles | Met 8R-AWN 2004 | -10/Exiles | Met EX-HEX 2039 | -10/Exiles | Met EX-BIN 2056 | -10/Exiles | Aligned with FarCom system 2057 | -10/Exiles | Given EX-Vault access code 2090 | -10/Exiles | Opened EX-Vault 2099 | -10/Exiles | Found AWS/Gauss 2122 | -10/Exiles | Warned to stay clear of 0b10 Research branches 2158 | -10/Exiles | Met EX-DEC 2265 | -10/Exiles | Visited The Gauntlet 2513 | -10/Exiles | Discovered new exit (range 10) 2531 | -10/Exiles | Left Exiles lab with AWS/Gauss 2531 | -10/Exiles | Entered Mines 2582 | -9/Mines | Learned Materials emergency access door positions 2685 | -9/Mines | Met a Derelict shopkeep closing up shop 2685 | -9/Mines | Discovered new exit (range 9) 2737 | -9/Mines | Assisted by bots powering up and referring to "LRC-V3" 2973 | -9/Mines | Found a damaged Exp. Sensor Array with a note attached 2976 | -9/Mines | Found Prototype Device 3026 | -9/Mines | Discovered new exit (range 15) 3064 | -9/Mines | Learned location of Storage (-7) 3097 | -9/Mines | Entered Materials 3097 | -8/Materials | Accompanied by 3 allies 3097 | -8/Materials | Evolved 4 slots: Propulsion x2, Utility x2 3098 | -8/Materials | Identified exit to Factory 3100 | -8/Materials | Loaded intel: 11 terminal locations 3107 | -8/Materials | Identified Exp. Sensor Array 3991 | -8/Materials | Build established: Mutant 4781 | -8/Materials | Discovered exit to Factory (range 10) 5039 | -8/Materials | Discovered exit to Factory (range 16) 5050 | -8/Materials | AWS/Gauss suddenly broke down 5204 | -8/Materials | Entered Factory 5204 | -7/Factory | Evolved 2 slots: Utility x1, Weapon x1 5553 | -7/Factory | Build established: Skirmisher 5959 | -7/Factory | Discovered new exit (range 9) 5963 | -7/Factory | Crushed by falling debris 6249 | -7/Factory | Discovered new exit (range 5) 6646 | -7/Factory | Repaired VSS Leg+ 6800 | -7/Factory | Build established: Hacker-Skirmisher 6872 | -7/Factory | Fabricated Gatling Laser? 7204 | -7/Factory | First assault squad dispatched 7465 | -7/Factory | AWS/Gauss suddenly broke down 7486 | -7/Factory | Garrison activated, responded to threat 7589 | -7/Factory | Central database locked down 7599 | -7/Factory | Identified exit to Storage 7599 | -7/Factory | Identified exit to Lower Caves 7778 | -7/Factory | Build established: Scientist-Mutant 7825 | -7/Factory | Identified exit to Garrison 7825 | -7/Factory | Entered Garrison 7963 | -7/Garrison | Triggered checkpoint 8015 | -7/Garrison | Triggered checkpoint 8019 | -7/Garrison | Triggered checkpoint 8061 | -7/Garrison | Destroyed 10 combat bots 8279 | -7/Garrison | Triggered checkpoint 8300 | -7/Garrison | Triggered checkpoint 8306 | -7/Garrison | Build established: Scientist-Skirmisher 8470 | -7/Garrison | Triggered checkpoint 8608 | -7/Garrison | Discovered new exit (range 10) 8716 | -7/Garrison | Phase Generator disabled 8733 | -7/Garrison | Learned Factory security intel 8844 | -7/Garrison | Triggered checkpoint 8899 | -7/Garrison | Triggered checkpoint 8948 | -7/Garrison | Discovered new exit (range 8) 9106 | -7/Garrison | Garrison Relay disabled 9118 | -7/Garrison | Garrison Relay disabled 9277 | -7/Garrison | Discovered new exit (range 10) 9375 | -7/Garrison | Triggered checkpoint 9378 | -7/Garrison | Garrison Relay disabled 9399 | -7/Garrison | Build established: Scavenger-Mutant 9447 | -7/Garrison | Spotted B-75 Beast 9558 | -7/Garrison | Entered Factory 9558 | -7/Factory | Accompanied by 2 allies 9931 | -7/Factory | Discovered new exit (range 13) 9958 | -7/Factory | First assault squad dispatched 10235 | -7/Factory | Core integrity fell below 50% 10498 | -7/Factory | Entered Lower Caves 10504 | -7/Lower Caves | Met a Warlord Commander 10505 | -7/Lower Caves | Learned location of Warlord (-5) 10506 | -7/Lower Caves | Warlord Commander delivered Encrypted Comm Array 10506 | -7/Lower Caves | Found Encrypted Comm Array 10520 | -7/Lower Caves | Learned location of Zion (-6) 10554 | -7/Lower Caves | A Derelict revealed a hidden shortcut to meet someone special 10558 | -7/Lower Caves | Entered Data Miner 10559 | -7/Data Miner | Discovered new exit (range 6) 10567 | -7/Data Miner | Met Data Miner 10575 | -7/Data Miner | Learned location of Section 7 (-2) 10575 | -7/Data Miner | Acquired the access code to Warlord's prototype stash 10582 | -7/Data Miner | Received God Mode back door access code from Data Miner 10598 | -7/Data Miner | Entered Proximity Caves 10753 | -6/Proximity Caves | Spotted B-75 Beast 10779 | -6/Proximity Caves | Build established: Hacker-Mutant 10781 | -6/Proximity Caves | Ambushed by research squad 10999 | -6/Proximity Caves | Discovered new exit (range 7) 11075 | -6/Proximity Caves | Entered Factory 11075 | -6/Factory | Evolved 2 slots: Propulsion x1, Utility x1 11122 | -6/Factory | Repaired Hvy. Rocket Launcher+ 11355 | -6/Factory | Discovered new exit (range 16) 11493 | -6/Factory | Garrison activated, responded to threat 11505 | -6/Factory | Joined by Warlord Infantry squad 11548 | -6/Factory | Identified exit to Garrison 11557 | -6/Factory | Entered Garrison 11597 | -6/Garrison | Triggered checkpoint 11621 | -6/Garrison | Garrison Relay disabled 11684 | -6/Garrison | Triggered checkpoint 11764 | -6/Garrison | Spotted B-75 Beast 11894 | -6/Garrison | Destroyed B-75 Beast 11914 | -6/Garrison | Triggered checkpoint 11949 | -6/Garrison | Destroyed 8 combat bots 11990 | -6/Garrison | Discovered new exit (range 13) 12011 | -6/Garrison | Triggered checkpoint 12053 | -6/Garrison | Lost 4 parts (1p1n2w) 12103 | -6/Garrison | Heavy support dispatched to Factory 12276 | -6/Garrison | Triggered checkpoint 12408 | -6/Garrison | Spotted B-75 Beast 12432 | -6/Garrison | Destroyed B-75 Beast 12466 | -6/Garrison | Found Fusion Bomb Launcher 12567 | -6/Garrison | Discovered new exit (range 15) 12642 | -6/Garrison | Garrison Relay disabled 12682 | -6/Garrison | Triggered checkpoint 12695 | -6/Garrison | Heavy support dispatched to Factory 12751 | -6/Garrison | Garrison Relay disabled 12766 | -6/Garrison | Build established: Hacker-Skirmisher 12800 | -6/Garrison | Lost 3 parts (1n1u1w) 12807 | -6/Garrison | Warlord forces raided the area 12817 | -6/Garrison | Discovered new exit (range 10) 12863 | -6/Garrison | Garrison Relay disabled 12933 | -6/Garrison | Entered Factory 12933 | -5/Factory | Accompanied by 3 allies 12933 | -5/Factory | Evolved 2 slots: Power x1, Utility x1 13155 | -5/Factory | Joined by Warlord Dakka squad 13220 | -5/Factory | Fabricated Gatling Laser? 13233 | -5/Factory | First assault squad dispatched 13305 | -5/Factory | Adv. Hacking Suite fried by hacking feedback 13754 | -5/Factory | Cargo convoy interrupted 13767 | -5/Factory | Garrison activated, responded to threat 13835 | -5/Factory | Lost 3 parts (1p1n1u) 13850 | -5/Factory | Incoming assault squad redirected 13856 | -5/Factory | Found Prototype Device 13856 | -5/Factory | Identified Exp. Transmission Jammer 13870 | -5/Factory | Found Prototype Device 13870 | -5/Factory | Identified Exp. EM Shield 13874 | -5/Factory | Destroyed 15 combat bots 14122 | -5/Factory | Spotted B-75 Beast 14151 | -5/Factory | Build established: Skirmisher 14164 | -5/Factory | Fabricated Adv. Launcher Guidance Computer? 14174 | -5/Factory | Discovered new exit (range 3) 14635 | -5/Factory | Repaired Antigrav Array 14660 | -5/Factory | Joined by Warlord Muscle squad 14742 | -5/Factory | Discovered new exit (range 15) 14758 | -5/Factory | Core integrity fell below 50% 14786 | -5/Factory | High security lockdown imminent 14793 | -5/Factory | Lost 15 parts (2p5n6u2w) 14793 | -5/Factory | Core integrity fell below 20% 14866 | -5/Factory | High security lockdown engaged 14942 | -5/Factory | Entered Upper Caves 14974 | -5/Upper Caves | Attracted the attention of an 0b10 checkpoint 15015 | -5/Upper Caves | System corruption reached 10% 15100 | -5/Upper Caves | Identified exit to Upper Caves 15111 | -5/Upper Caves | Learned Armory garrison access intel 15111 | -5/Upper Caves | A Commander dispatched an escort 15420 | -5/Upper Caves | Lost 3 allies 15523 | -5/Upper Caves | Entered another Upper Caves area 15533 | -5/Upper Caves | Entered an active Warlord outpost 15541 | -5/Upper Caves | Learned location of 1 exit from Research 15541 | -5/Upper Caves | Learned Extension emergency access door positions 15541 | -5/Upper Caves | Learned Research security intel 15541 | -5/Upper Caves | Learned Research garrison access intel 15572 | -5/Upper Caves | Discovered new exit (range 11) 15670 | -5/Upper Caves | Lost 4 allies 15678 | -5/Upper Caves | Build established: Derelict-Mutant 16195 | -5/Upper Caves | Found DCF Scrap (11 items) 16223 | -5/Upper Caves | Learned location of Armory (-4) 16231 | -5/Upper Caves | Encountered a Warlord checkpoint 16253 | -5/Upper Caves | Discovered new exit (range 6) 16274 | -5/Upper Caves | Entered Warlord 16290 | -5/Warlord | System corruption cleaned by Quarantine Array 16386 | -5/Warlord | Visited the Vortex Lab 16388 | -5/Warlord | Warlord's base attacked by MAIN.C 16392 | -5/Warlord | Found Prototype Energy Gun 16392 | -5/Warlord | Identified Vortex Rifle 16396 | -5/Warlord | Found Prototype Energy Gun 16396 | -5/Warlord | Identified Vortex Rail 16401 | -5/Warlord | Found Prototype Launcher 16401 | -5/Warlord | Identified Vortex Catalyst Activator 16422 | -5/Warlord | Opened Warlord's prototype stash 16432 | -5/Warlord | Found Prototype Hackware 16434 | -5/Warlord | Found Prototype Device 16434 | -5/Warlord | Identified System Purifier 16454 | -5/Warlord | Met Warlord 16639 | -5/Warlord | Opened side exit 16738 | -5/Warlord | Warlord forces counterattacked 16748 | -5/Warlord | Spotted Striker 16748 | -5/Warlord | Spotted Executioner 16801 | -5/Warlord | Lost 12 allies 16803 | -5/Warlord | Spotted Striker 16829 | -5/Warlord | Spotted Striker 16831 | -5/Warlord | Discovered new exit (range 9) 16832 | -5/Warlord | Entered Proximity Caves 16899 | -4/Proximity Caves | Spotted B-86 Titan 16948 | -4/Proximity Caves | Attracted the attention of an 0b10 checkpoint 16952 | -4/Proximity Caves | Learned location of Testing (-2) 17018 | -4/Proximity Caves | Discovered new exit (range 4) 17020 | -4/Proximity Caves | Entered Factory 17020 | -4/Factory | Evolved 2 slots: Utility x1, Weapon x1 17022 | -4/Factory | Identified Ghost Barrier 17152 | -4/Factory | Found Prototype Device 17152 | -4/Factory | Identified Adv. EM Shield 17167 | -4/Factory | Discovered new exit (range 13) 17179 | -4/Factory | Spotted B-86 Titan 17231 | -4/Factory | Identified exit to Upper Caves 17231 | -4/Factory | Identified exit to Armory 17512 | -4/Factory | Garrison activated, responded to threat 17666 | -4/Factory | Discovered new exit (range 6) 17859 | -4/Factory | Build established: Hacker-Skirmisher 17969 | -4/Factory | Repaired Hyp. Railgun? 18034 | -4/Factory | Incoming investigation squad redirected 18077 | -4/Factory | Fabricated Enh. Nova Cannon? 18173 | -4/Factory | Build established: Hacker-Mutant 18350 | -4/Factory | Repaired Hyp. Mass Driver? 18519 | -4/Factory | Identified exit to Garrison 18519 | -4/Factory | Entered Garrison 18587 | -4/Garrison | Triggered checkpoint 18592 | -4/Garrison | Garrison Relay disabled 18694 | -4/Garrison | Triggered checkpoint 18750 | -4/Garrison | Triggered checkpoint 18779 | -4/Garrison | Garrison Relay disabled 18791 | -4/Garrison | Discovered new exit (range 14) 19133 | -4/Garrison | Garrison Relay disabled 19151 | -4/Garrison | Triggered checkpoint 19213 | -4/Garrison | Garrison Relay disabled 19225 | -4/Garrison | Discovered new exit (range 3) 19467 | -4/Garrison | Rewired B-75 Beast 19617 | -4/Garrison | Triggered checkpoint 19649 | -4/Garrison | Spotted B-86 Titan 19649 | -4/Garrison | Spotted B-86 Titan 19726 | -4/Garrison | Destroyed B-86 Titan 19883 | -4/Garrison | Entered Research 19883 | -3/Research | Evolved 2 slots: Utility x2 19884 | -3/Research | Identified exit to Quarantine 19886 | -3/Research | Loaded intel: 3 garrison access locations 19900 | -3/Research | Identified exit to DSF 19907 | -3/Research | Build established: Scavenger-Tank 19958 | -3/Research | Entered DSF 19979 | -3/DSF | Additional patrols routed to DSF 20119 | -3/DSF | Destroyed 7 combat bots 20127 | -3/DSF | Sterilization system engaged 20147 | -3/DSF | Ambient heat levels rising (+10) 20162 | -3/DSF | Ambient heat levels rising (+10) 20177 | -3/DSF | Ambient heat levels rising (+10) 20178 | -3/DSF | Discovered new exit (range 16) 20192 | -3/DSF | Ambient heat levels rising (+10) 20207 | -3/DSF | Ambient heat levels rising (+10) 20222 | -3/DSF | Ambient heat levels rising (+10) 20223 | -3/DSF | Entered Research 20223 | -2/Research | Warlord forces began assault on 0b10 20223 | -2/Research | Evolved 2 slots: Utility x2 20248 | -2/Research | Distinguished unit "Cat Herders" dispatched to help 20248 | -2/Research | Distinguished unit "Bridgeowners Association" dispatched to help 20333 | -2/Research | Research machine network offline 20380 | -2/Research | Lost 5 allies 20644 | -2/Research | Spotted Striker 20688 | -2/Research | Lost 3 allies 20738 | -2/Research | Found Prototype Hackware 20748 | -2/Research | Borebot progress halted 20753 | -2/Research | Spotted Striker 20764 | -2/Research | Build established: Hacker-Tank 20902 | -2/Research | Found Fusion Bomb Launcher 20908 | -2/Research | Discovered new exit (range 9) 21081 | -2/Research | Met up with Warlord 21087 | -2/Research | Spotted Executioner 21197 | -2/Research | Identified Exp. Hacking Suite 21200 | -2/Research | Borebot progress halted 21223 | -2/Research | Warlord invited to help at Command 21223 | -2/Research | Given Cave Seal Controls access code 21453 | -2/Research | Spotted Striker 21462 | -2/Research | Identified exit to Testing 21492 | -2/Research | Destroyed Striker 21551 | -2/Research | Lost 10 parts (2p7u1w) 21618 | -2/Research | Spotted Striker 21900 | -2/Research | Discovered new exit (range 8) 21912 | -2/Research | Identified exit to Access 21913 | -2/Research | Entered Access 21913 | -1/Access | Evolved 2 slots: Power x1, Utility x1 21954 | -1/Access | Build established: Scavenger-Tank 22262 | -1/Access | Identified exit to Command 22794 | -1/Access | Garrison activated, responded to threat 23000 | -1/Access | Incoming investigation squad redirected 23693 | -1/Access | System corruption reached 10% 23849 | -1/Access | Found Unknown Device 23849 | -1/Access | Identified Heavy Servo Lattice 23990 | -1/Access | Build established: Scavenger-Skirmisher 24041 | -1/Access | Lost 3 parts (1u2w) 24163 | -1/Access | First assault squad dispatched 24189 | -1/Access | Incoming assault squad redirected 24340 | -1/Access | Spotted B-99 Colossus 24341 | -1/Access | Spotted B-99 Colossus 24351 | -1/Access | Entered Command 24440 | -1/Command | Disengaged cave seal 24440 | -1/Command | Derelicts emerged from the dark tunnel 24440 | -1/Command | Welcomed Warlord to Command 24501 | -1/Command | Spotted Executioner 24501 | -1/Command | Spotted Alpha 7 24530 | -1/Command | Lost 10 allies 24538 | -1/Command | Spotted Executioner 24538 | -1/Command | Spotted Executioner 24538 | -1/Command | Spotted Alpha 7 24538 | -1/Command | Spotted Striker 24553 | -1/Command | Destroyed Striker 24557 | -1/Command | Destroyed Executioner 24571 | -1/Command | Destroyed Executioner 24576 | -1/Command | Lost 7 allies 24576 | -1/Command | Spotted Executioner 24577 | -1/Command | Found Prototype Device 24577 | -1/Command | Identified Adv. Kinecellerator 24582 | -1/Command | Spotted B-99 Colossus 24584 | -1/Command | Spotted B-99 Colossus 24595 | -1/Command | Found Exp. Targeting Computer 24601 | -1/Command | First assault squad dispatched 24615 | -1/Command | Discovered new exit (range 22) 24625 | -1/Command | Incoming assault squad redirected 24633 | -1/Command | Lost 3 allies 24715 | -1/Command | Lost 4 allies 24762 | -1/Command | Spotted M Guard 24765 | -1/Command | Spotted M Guard 24766 | -1/Command | Spotted Combat Programmer 24766 | -1/Command | Spotted Combat Programmer 24773 | -1/Command | Warlord commented on Warlord statues 24783 | -1/Command | Combat Programmer assimilated allied Y5-0MA(D) 24794 | -1/Command | System corruption reached 30% 24798 | -1/Command | Combat Programmer assimilated allied CA-7W9(D) 24799 | -1/Command | Spotted CA-7W9(D) 24815 | -1/Command | Destroyed Combat Programmer 24827 | -1/Command | All MAIN.C guards destroyed 24838 | -1/Command | Lost 11 parts (3p1n4u3w) 25212 | -1/Command | Incoming assault squad redirected 25236 | -1/Command | Build established: Scavenger-Tank 25249 | -1/Command | 0b10 Conduit disabled 25249 | -1/Command | Met MAIN.C 25283 | -1/Command | Core integrity fell below 50% 25294 | -1/Command | Lost 4 allies 25298 | -1/Command | Destroyed MAIN.C Shell 25300 | -1/Command | MAIN.C activated Command garrisons 25342 | -1/Command | Lost 3 allies 25363 | -1/Command | Core integrity fell below 20% 25368 | -1/Command | Destroyed by MAIN.C with Omega Cannon Last Messages --------------- 25356_ Adv. Cooling System destroyed. 25356_ Knocked back. 25358_ Centrium Leg+ destroyed. 25359_ Hds. Centrium Leg destroyed. 25359_ Knocked back. 25361_ Acquired Antigrav System. 25362_ System corrupted: Adv. Weapon Cycler rejected. 25362_ Centrium Leg+ destroyed. 25362_ Antigrav System destroyed. 25362_ Knocked back. 25363_ Acquired 91 matter. 25364_ Acquired Fusion Bomb Launcher. 25365_ Fusion Bomb Launcher destroyed. 25365_ Adv. Heat Sink destroyed. 25365_ Knocked back. 25366_ Acquired Prototype Leg. 25366_ Identified Enh. Biometal Leg. [Achievement: 40k Club] [Achievement: 50k Club] Map ----- +----------------------------------------------------+ | ?????????????????????????????????????????????????? | | ?????????????????????????????????????????????????? | | ?????????????????????????????????????????????????? | | ?????????????????????????????????????????????????? | | ?????????????????????????????????????????????????? | | ?????????????????????????????????????????????????? | | ?????????????????????????????????????????????????? | | ?????????????????????????????????????????????????? | | ?????????????????????????????????????????????????? | | ?????????????????????????????????????????????????? | | ?????????????????????????????????????????????????? | | ?????????????????????????????????????????????????? | | ?????????????????????????????????????????????????? | | ?????????????????????????????????????????????????? | | ?????????????????????????????????????????????????? | | ?????????????????????????????????????????????????? | | ?????????????????????????????????????????????????? | | ?????????????????????????????????????????????????? | | ?????????????????????????????????????????????????? | | ?????????????????????????????????????????????????? | | ??????################???????????????????????????? | | ??????" " "" #???????????????????????????? | | ?????? " *#???????????????????????????? | | ????" " % !!=#######################?????? | | ????" =%[[! % | %W g #?????? | | ?????? " % %M=!%!% =!@ % gg #?????? | | ??????? %!*=!=!!%% % g % #?????? | | ?????"" %% [%%################### #?????? | | ?????" " %%% !!#?????????????????# #?????? | | ?????? !#?????????????????# ####### | | ?????? % #?????????????????# T# # | | ??????" " """""#?????????????????# +###" | | ?????? """"""""#?????????????????# | | ?????? """""""""""#?????????????????# | | ?????? " " " " ??????????????????# | | ?????? ??????????????????????????????# | | ???????????????????????????????????????# * | | ???????????????????????????????????????# # | | ???????????????????????????????????????###### # | | ????????????????????????????????????????????###### | | ?????????????????????????????????????????????????? | | ?????????????????????????????????????????????????? | | ?????????????????????????????????????????????????? | | ?????????????????????????????????????????????????? | | ?????????????????????????????????????????????????? | | ?????????????????????????????????????????????????? | | ?????????????????????????????????????????????????? | | ?????????????????????????????????????????????????? | | ?????????????????????????????????????????????????? | | ?????????????????????????????????????????????????? | +----------------------------------------------------+ Best States ------------- Heat Dissipation 178 Coolant Potential 200 Energy Generation 69 Energy Capacity 840 Matter Stores 300 Matter Capacity 300 Sight Range 23 Terrain Scan Density 10 Cloak Strength 3 Additional Mass Support 12 Base Temperature (-) 100 EM Shielding 4 Corruption Block 20 Armor Coverage 600 Resistance: TH 15 Resistance: EM 75 Core Shielding 30 Propulsion Shielding 66 Utility Shielding 33 Point Defense Rating 160 Weapon Cycling 25 Phase Shifting 15 Evasion (%) 70 Targeting Accuracy 12 Launcher Accuracy 30 Target Analysis 6 Core Analysis 6 Armor Integrity Analysis 40 Recoil Reduction 2 Particle Charging 25 Salvage Targeting 3 Offensive Hacking 36 Defensive Hacking 32 Authchip Count 1 Item Schematics ----------------- Cryofiber Web | -8/Materials | Hacked Gatling Laser | -7/Factory | Hacked Gravmag Array | -7/Factory | Hacked Combat Drone Bay | -7/Data Miner | Free Lgt. Regenerative Plating | -7/Data Miner | Free Biomechanical Wings | -7/Data Miner | Free Exp. Targeting Computer | -7/Data Miner | Free Nuclear Pulse Array | -7/Data Miner | Free Gui. EMP Blaster | -7/Data Miner | Free Imp. Coolant Injector | -7/Data Miner | Free Enh. Gauss Cannon | -7/Data Miner | Free Bore Cannon | -6/Factory | Scanalyzed Enh. Nova Cannon | -4/Factory | Hacked Adv. Cryofiber Web | -4/Factory | Hacked Robot Schematics ------------------ R-10 Processor | -7/Data Miner | Free O-24 Administrator | -7/Data Miner | Free B-48 Gladiator | -7/Data Miner | Free Y-54 Guardian | -7/Data Miner | Free L-41 Fighter | -7/Data Miner | Free Fabricated ------------ Gatling Laser | x2 | -7/Factory Gatling Laser | x2 | -5/Factory Adv. Launcher Guidance Computer | x2 | -5/Factory | Preloaded Enh. Nova Cannon | x2 | -4/Factory Repaired ---------- EM Pulse Gun | 26% | -10/Materials VSS Leg | 20% | -7/Factory Hvy. Rocket Launcher | 11% | -6/Factory Antigrav Array | 1% | -5/Factory Hyp. Railgun | 24% | -4/Factory Hyp. Mass Driver | 2% | -4/Factory Studied --------- Carbon-fiber Leg | -8/Materials | Hacked VSS Leg | -8/Materials | Hacked Deuterium Engine | -8/Materials | Hacked Imp. Carbon-fiber Leg | -7/Factory | Hacked Hvy. Rocket Launcher | -7/Factory | Hacked Arm. Leg | -7/Factory | Hacked Gatling Laser | -7/Factory | Hacked Gravmag Array | -6/Factory | Hacked Gravmag System | -6/Factory | Hacked Thermic Laser | -6/Factory | Hacked Imp. Deuterium Engine | -6/Factory | Hacked Hardcell Cannon | -4/Factory | Hacked Power Sword | -4/Factory | Hacked Centrium Leg | -2/Research | Hacked Alien Tech Used ----------------- None Achievements -------------- 40k Club 50k Club All-out Warlord Corridor Of Doom Hackathon Hot Stuff My Bad No Explosion For You Showdown Ultimate Loadout Welcome To The Revolution Challenges ------------ None Game ------ Seed ScanChainGuard Manual? 0 Play Time 07:34:28 Cumulative 137.8 hours Start 2025.11.29 @ 03:59:47 End 2025.11.30 @ 16:41:50 Sessions 9 Manual Loads 0 Difficulty Rogue Special Mode None Game No. 70 Rogue 70 Adventurer 0 Explorer 0 Win Type - Total 1 Types 1/0/0/0/0/0/0/0/0/0 Lore% 63 Gallery% 60 Achievement% 48 Wizard Run 0 Options --------- Layout 1 ASCII 0 Keyboard 0 Movement Mouse Keybinds 0 Fullscreen 2 Font 32/SmallcapsGlow Map View 50x35 Zoom Use 0% Tactical HUD 1 Map Filters NONE Filters NONE Steam 1 RUN: 620dbc4d-ac15-4cda-bbac-27500228e571